fUST/lending_fUST_20241104
["ID","MTS","AMOUNT","RATE_DAILY","PERIOD"]
[341256175,1730729447642,-549.43,0.0003315,2]
[341256176,1730729447652,-500.0,0.0003315,4]
[341256177,1730729447661,-500.0,0.0003315,4]
[341256178,1730729447671,-500.0,0.0003315,4]
[341256179,1730729447683,-500.0,0.0003315,4]
[341256180,1730729447693,-1426.75,0.0003315,4]
[341256181,1730729447702,-500.0,0.0003315,4]
[341256182,1730729447713,-151.0,0.0003315,14]
[341256183,1730729447722,-151.0,0.0003315,14]
[341256184,1730729447731,-151.0,0.0003315,14]
[341256185,1730729447741,-151.0,0.0003315,14]
[341256186,1730729447751,-151.0,0.0003315,14]
[341256187,1730729447760,-151.0,0.0003315,14]
[341256188,1730729447770,-151.0,0.0003315,14]
[341256189,1730729447779,-151.0,0.0003315,14]
[341256190,1730729447789,-151.0,0.0003315,14]
[341256191,1730729447799,-151.0,0.0003315,14]
[341256192,1730729447808,-151.0,0.0003315,14]
[341256193,1730729447818,-151.0,0.0003315,14]
[341256194,1730729447829,-151.0,0.0003315,14]
[341256195,1730729447840,-151.0,0.0003315,14]
[341256196,1730729447850,-151.0,0.0003315,14]
[341256197,1730729447860,-9451.51,0.0003315,3]
[341256198,1730729447870,-500.0,0.0003315,4]
[341256199,1730729447881,-237.3102354,0.0003315,4]
[341256200,1730729447891,-151.0,0.0003315,14]
[341256201,1730729447901,-151.0,0.0003315,14]
[341256202,1730729447910,-151.0,0.0003315,14]
[341256203,1730729447920,-500.0,0.0003315,4]
[341256204,1730729447930,-500.0,0.0003315,4]
[341256205,1730729447939,-500.0,0.0003315,4]
[341256206,1730729447949,-165.765743,0.0003315,14]
[341256207,1730729447958,-500.0,0.0003315,4]
[341256208,1730729447968,-500.0,0.0003315,4]
[341256209,1730729447978,-500.0,0.0003315,4]
[341256210,1730729447987,-500.0,0.0003315,4]
[341256211,1730729447997,-740.67,0.0003315,4]
[341256212,1730729448007,-577.34169666,0.0003315,4]
[341256213,1730729448018,-500.0,0.0003315,4]
[341256214,1730729448028,-506.19387986,0.0003315,4]
[341256215,1730729448038,-500.0,0.0003315,4]
[341256216,1730729448048,-500.0,0.0003315,120]
[341256217,1730729448058,-151.0,0.0003315,14]
[341256218,1730729448070,-151.0,0.0003315,14]
[341256219,1730729448080,-151.0,0.0003315,14]
[341256220,1730729448090,-500.0,0.0003315,4]
[341256221,1730729448100,-500.0,0.0003315,4]
[341256222,1730729448109,-500.0,0.0003315,4]
[341256223,1730729448119,-500.0,0.0003315,4]
[341256224,1730729448130,-500.0,0.0003315,4]
[341256225,1730729448140,-500.0,0.0003315,4]
[341256226,1730729448149,-500.0,0.0003315,4]
[341256227,1730729448159,-170.47152668,0.0003315,4]
[341256228,1730729448168,-1000.0,0.0003315,28]
[341256229,1730729448177,-1000.0,0.0003315,28]
[341256230,1730729448187,-1000.0,0.0003315,28]
[341256231,1730729448197,-1000.0,0.0003315,28]
[341256232,1730729448206,-1000.0,0.0003315,28]
[341256233,1730729448216,-1000.0,0.0003315,28]
[341256234,1730729448225,-1000.0,0.0003315,28]
[341256235,1730729448235,-1000.0,0.0003315,28]
[341256236,1730729448244,-1000.0,0.0003315,28]
[341256237,1730729448254,-1000.0,0.0003315,28]
[341256238,1730729448263,-1000.0,0.0003315,28]
[341256239,1730729448272,-1134.27666326,0.0003315,28]
[341256240,1730729448292,-500.0,0.0003315,4]
[341256241,1730729448301,-632.57057884,0.0003315,4]
[341256242,1730729448310,-163.24030194,0.0003315,4]
[341256243,1730729448379,-151.0,0.0003315,14]
[341256244,1730729448389,-151.0,0.0003315,14]
[341256245,1730729448400,-151.0,0.0003315,14]
[341256246,1730729448410,-500.0,0.0003315,4]
[341256247,1730729448419,-151.0,0.0003315,14]
[341256248,1730729448432,-151.0,0.0003315,14]
[341256249,1730729448442,-151.0,0.0003315,14]
[341256250,1730729448451,-500.0,0.0003315,4]
[341256251,1730729448461,-500.0,0.0003315,4]
[341256252,1730729448470,-500.0,0.0003315,4]
[341256253,1730729448480,-500.0,0.0003315,4]
[341256254,1730729448490,-500.0,0.0003315,4]
[341256255,1730729448499,-500.0,0.0003315,4]
[341256256,1730729448509,-500.0,0.0003315,4]
[341256257,1730729448518,-510.22547065,0.0003315,4]
[341256258,1730729448528,-500.0,0.0003315,4]
[341256259,1730729448537,-500.0,0.0003315,4]
[341256260,1730729448547,-297.69678316,0.0003315,4]
[341256261,1730729448557,-500.0,0.0003315,4]
[341256262,1730729448566,-511.44117033,0.0003315,4]
[341256263,1730729448575,-500.0,0.0003315,4]
[341256264,1730729448585,-500.0,0.0003315,4]
[341256265,1730729448595,-500.0,0.0003315,4]
[341256266,1730729448604,-794.83,0.0003315,4]
[341256267,1730729448614,-500.0,0.0003315,4]
[341256268,1730729448625,-500.0,0.0003315,4]
[341256269,1730729448634,-500.0,0.0003315,4]
[341256270,1730729448644,-793.41,0.0003315,4]
[341256271,1730729448654,-500.0,0.0003315,4]
[341256272,1730729448664,-151.0,0.0003315,14]
[341256273,1730729448673,-151.0,0.0003315,14]
[341256274,1730729448683,-500.0,0.0003315,4]
[341256275,1730729448692,-500.0,0.0003315,4]
[341256276,1730729448701,-500.0,0.0003315,4]
[341256277,1730729448711,-500.0,0.0003315,4]
[341256278,1730729448720,-525.41294468,0.0003315,4]
[341256279,1730729448729,-500.0,0.0003315,4]
[341256280,1730729448739,-507.97533057,0.0003315,4]
[341256281,1730729448748,-500.0,0.0003315,4]
[341256282,1730729448758,-500.0,0.0003315,4]
[341256283,1730729448767,-999.5,0.0003315,4]
[341256284,1730729448777,-600.99,0.0003315,4]
[341256285,1730729448786,-500.0,0.0003315,4]
[341256286,1730729448796,-500.0,0.0003315,4]
[341256287,1730729448805,-500.0,0.0003315,4]
[341256288,1730729448814,-500.0,0.0003315,4]
[341256289,1730729448824,-2103.51,0.0003315,4]
[341256290,1730729448834,-500.0,0.0003315,4]
[341256291,1730729448843,-339.43851374,0.0003315,4]
[341256292,1730729448852,-500.0,0.0003315,4]
[341256293,1730729448862,-577.4964112,0.0003315,4]
[341256294,1730729448871,-500.0,0.0003315,4]
[341256295,1730729448881,-500.0,0.0003315,4]
[341256296,1730729448891,-500.0,0.0003315,4]
[341256297,1730729448901,-500.0,0.0003315,4]
[341256298,1730729448910,-500.0,0.0003315,4]
[341256299,1730729448919,-250.0,0.0003315,4]
[341256300,1730729448929,-500.0,0.0003315,4]
[341256301,1730729448939,-500.0,0.0003315,4]
[341256302,1730729448949,-500.0,0.0003315,4]
[341256303,1730729448959,-500.0,0.0003315,4]
[341256304,1730729448968,-500.0,0.0003315,4]
[341256305,1730729448978,-527.65281755,0.0003315,4]
[341256306,1730729448987,-1487.72,0.0003315,4]
[341256307,1730729448997,-500.0,0.0003315,4]
[341256308,1730729449007,-500.0,0.0003315,4]
[341256309,1730729449016,-535.016915,0.0003315,4]
[341256310,1730729449025,-500.0,0.0003315,4]
[341256311,1730729449035,-500.0,0.0003315,4]
[341256312,1730729449044,-500.0,0.0003315,4]
[341256313,1730729449054,-372.833317,0.0003315,14]
[341256314,1730729449066,-372.833317,0.0003315,14]
[341256315,1730729449076,-500.0,0.0003315,4]
[341256316,1730729449086,-372.833317,0.0003315,14]
[341256317,1730729449096,-372.833317,0.0003315,14]
[341256318,1730729449105,-231.0,0.00033151,2]
[341256319,1730729449115,-309.1257563,0.00033151,2]
[341256320,1730729449125,-309.09841217,0.000332,14]
[341256321,1730729449135,-334.0,0.000332,120]
[341256322,1730729449144,-228.92813,0.000333,120]
[341256323,1730729449154,-7897.17608725,0.000333,2]
[341256324,1730729449163,-42835.40602728,0.000333,10]
[341256325,1730729449172,-151.0,0.000333,14]
[341256326,1730729449182,-151.0,0.000333,14]
[341256327,1730729449191,-151.0,0.000333,14]
[341256328,1730729449200,-193.030953,0.000333,14]
[341256329,1730729449210,-193.030953,0.000333,14]
[341256330,1730729449219,-151.0,0.000333,14]
[341256331,1730729449229,-372.833317,0.000333,14]
[341256332,1730729449239,-372.833317,0.000333,14]
[341256333,1730729449248,-6941.71576472,0.0003333,2]
[341256334,1730729449257,-151.0,0.0003333,14]
[341256335,1730729449267,-151.0,0.0003333,14]
[341256336,1730729449276,-288.732105,0.0003333,14]
[341256337,1730729449285,-151.0,0.0003333,14]
[341256338,1730729449295,-151.0,0.0003333,14]
[341256339,1730729449304,-151.0,0.0003333,14]
[341256340,1730729449314,-151.0,0.0003333,14]
[341256341,1730729449324,-151.0,0.0003333,14]
[341256342,1730729449334,-151.0,0.0003333,14]
[341256343,1730729449343,-3003.53810618,0.00033394,2]
[341256344,1730729449358,-153843.16636915,0.000334,5]
[341256345,1730729449623,-1374.30978938,0.000334,5]
[341256346,1730729449635,-7812.2869237,0.000334,5]
[341256347,1730729524800,251.2,0.00024,60]
[341256356,1730729839372,158.100639,0.00013973,2]
[341256358,1730729854574,430.91723081,0.0003366,120]
[341256362,1730730197616,28509.57,0.0003366,30]
[341256365,1730730263444,200.03554526,0.0002401,120]
[341256371,1730730384166,159.624531,0.00013973,2]
[341256375,1730730447161,-159.624531,0.00024224,2]
[341256376,1730730447183,-500.0,0.000247,2]
[341256377,1730730447205,-500.0,0.000247,2]
[341256378,1730730447227,-166.666666,0.00025034,2]
[341256379,1730730447249,-626.033555,0.00025284,2]
[341256380,1730730447271,-234.79881,0.00025328,2]
[341256381,1730730447294,-757.98762426,0.00025412,2]
[341256389,1730730546104,-300.0,0.00024999,2]
[341256390,1730730546128,-300.0,0.00024999,2]
[341256391,1730730546150,-1853.34275651,0.00025,2]
[341256405,1730730632089,-222.369877,0.00024492,2]
[341256406,1730730632102,-300.0,0.00024999,2]
[341256407,1730730632115,-300.0,0.00024999,2]
[341256408,1730730632127,-18323.46977546,0.00025,2]
[341256409,1730730632140,-2033.55526984,0.00025343,2]
[341256410,1730730632153,-3798.55965634,0.00025412,2]
[341256411,1730730632166,-197.4978144,0.00025422,4]
[341256412,1730730632179,-598.09929608,0.00025434,2]
[341256413,1730730632190,-24900.0,0.00025434,2]
[341256414,1730730632202,-255.9584487,0.00025443,2]
[341256415,1730730632212,-158.995872,0.000255,2]
[341256416,1730730632222,-166.666666,0.00025717,2]
[341256417,1730730632237,-226.34855684,0.000258,2]
[341256418,1730730632250,-226.34855683,0.000258,2]
[341256419,1730730632263,-626.033555,0.00025969,2]
[341256420,1730730632274,-204.85316858,0.000262,2]
[341256421,1730730632286,-500.0,0.000262,2]
[341256422,1730730632297,-500.0,0.000262,2]
[341256423,1730730632310,-500.0,0.000262,2]
[341256424,1730730632323,-500.0,0.000262,2]
[341256425,1730730632336,-500.0,0.00026233,2]
[341256426,1730730632347,-509.31595472,0.00026389,2]
[341256427,1730730632360,-500.0,0.00026389,2]
[341256428,1730730632371,-500.0,0.00026389,2]
[341256429,1730730632381,-500.0,0.00026389,2]
[341256430,1730730632392,-166.666666,0.00026399,2]
[341256431,1730730632402,-226.34855683,0.00026651,2]
[341256432,1730730632421,-626.033555,0.00026654,2]
[341256433,1730730632432,-1501.76905309,0.000269,2]
[341256434,1730730632444,-500.0,0.00026981,2]
[341256435,1730730632456,-500.0,0.00026981,2]
[341256436,1730730632467,-561.86106089,0.00026981,2]
[341256437,1730730632478,-274.96222103,0.00026981,2]
[341256438,1730730632490,-307.30227184,0.00026981,2]
[341256439,1730730632501,-500.0,0.00026981,2]
[341256440,1730730632512,-500.0,0.00026981,2]
[341256441,1730730632522,-500.0,0.00026981,2]
[341256442,1730730632534,-500.0,0.00026981,2]
[341256443,1730730632544,-500.0,0.00026981,2]
[341256444,1730730632557,-500.0,0.00026981,2]
[341256445,1730730632568,-500.0,0.00026981,2]
[341256446,1730730632579,-5000.0,0.00026993,2]
[341256447,1730730632590,-5000.0,0.00026994,2]
[341256448,1730730632602,-500.0,0.00027,2]
[341256449,1730730632613,-166.666666,0.00027082,2]
[341256450,1730730632624,-420.0,0.00027082,2]
[341256451,1730730632635,-527.6537175,0.000271,2]
[341256452,1730730632646,-2033.55526983,0.00027201,2]
[341256453,1730730632661,-1755.42350808,0.0002728,2]
[341256454,1730730632673,-500.0,0.00027325,2]
[341256455,1730730632685,-500.0,0.00027325,2]
[341256456,1730730632697,-500.0,0.0002738,2]
[341256457,1730730632707,-420.0,0.00027499,2]
[341256458,1730730632718,-1000.0,0.0002757,5]
[341256459,1730730632730,-166.666666,0.00027764,2]
[341256460,1730730632742,-166.666666,0.00028447,2]
[341256461,1730730632754,-5000.0,0.00028477,2]
[341256462,1730730632766,-150.0,0.00028477,2]
[341256463,1730730632778,-267.409,0.00028477,2]
[341256464,1730730632908,-1322.349,0.00028477,2]
[341256465,1730730632920,-1501.76905309,0.00029043,2]
[341256466,1730730632930,-2033.55526983,0.0002906,2]
[341256467,1730730632940,-587.0,0.00029339,2]
[341256468,1730730632950,-613.44,0.00029869,3]
[341256469,1730730632960,-293.0,0.00030249,2]
[341256470,1730730632974,-2033.55526983,0.00030918,2]
[341256471,1730730632984,-269.6,0.00031176,10]
[341256472,1730730632994,-1501.76905309,0.00031186,2]
[341256473,1730730633004,-150.0,0.00031477,2]
[341256474,1730730633014,-500.0,0.0003192,2]
[341256475,1730730633025,-569.244004,0.0003242,2]
[341256476,1730730633034,-500.0,0.00032776,2]
[341256477,1730730633045,-2033.55526983,0.00032776,2]
[341256478,1730730633058,-500.0,0.00032873,5]
[341256479,1730730633068,-500.0,0.00032873,5]
[341256480,1730730633079,-5000.0,0.00032873,2]
[341256481,1730730633089,-5000.0,0.00032874,2]
[341256482,1730730633099,-5000.0,0.00032875,2]
[341256483,1730730633108,-5000.0,0.00032875,2]
[341256484,1730730633118,-5000.0,0.00032875,2]
[341256485,1730730633129,-5000.0,0.00032875,2]
[341256486,1730730633139,-5000.0,0.00032875,2]
[341256487,1730730633149,-500.0,0.00032876,4]
[341256488,1730730633160,-500.0,0.00032876,4]
[341256489,1730730633169,-500.0,0.00032876,4]
[341256490,1730730633179,-500.0,0.00032876,4]
[341256491,1730730633189,-500.0,0.00032876,4]
[341256492,1730730633198,-500.0,0.00032876,4]
[341256493,1730730633208,-500.0,0.00032876,4]
[341256494,1730730633218,-500.0,0.00032876,4]
[341256495,1730730633229,-1000.0,0.00032876,15]
[341256496,1730730633239,-500.0,0.00032876,4]
[341256497,1730730633249,-267.48982173,0.00032876,2]
[341256498,1730730633259,-200.0,0.00032876,4]
[341256499,1730730633269,-500.0,0.00032876,4]
[341256500,1730730633280,-535.71,0.00032876,4]
[341256501,1730730633289,-500.0,0.00032876,4]
[341256502,1730730633299,-500.0,0.00032876,4]
[341256503,1730730633315,-500.0,0.00032876,4]
[341256504,1730730633325,-298.03331647,0.00032876,4]
[341256505,1730730633336,-236.29381325,0.00032876,4]
[341256506,1730730633345,-500.0,0.00032876,4]
[341256507,1730730633355,-338.43012237,0.00032876,4]
[341256508,1730730633365,-500.0,0.00032876,4]
[341256509,1730730633376,-500.0,0.00032876,4]
[341256510,1730730633386,-500.0,0.00032876,4]
[341256511,1730730633396,-500.0,0.00032876,4]
[341256512,1730730633406,-500.0,0.00032876,4]
[341256513,1730730633416,-645.64343155,0.00032876,4]
[341256514,1730730633425,-646.91309522,0.00032876,4]
[341256515,1730730633435,-500.0,0.00032876,4]
[341256516,1730730633445,-1548.48,0.00032876,4]
[341256517,1730730633454,-500.0,0.00032876,4]
[341256518,1730730633464,-463.35861698,0.00032876,4]
[341256519,1730730633473,-500.0,0.00032876,4]
[341256520,1730730633483,-500.0,0.00032876,4]
[341256521,1730730633492,-500.0,0.00032876,4]
[341256522,1730730633502,-1001.00076588,0.00032876,5]
[341256523,1730730633512,-500.0,0.00032876,4]
[341256524,1730730633522,-500.0,0.00032876,4]
[341256525,1730730633542,-510.24635723,0.00032876,4]
[341256526,1730730633552,-533.89178612,0.00032876,4]
[341256527,1730730633564,-728.59,0.00032876,4]
[341256528,1730730633575,-516.42903761,0.00032876,4]
[341256529,1730730633585,-250.0,0.00032876,4]
[341256530,1730730633596,-500.0,0.00032876,4]
[341256531,1730730633606,-500.0,0.00032876,4]
[341256532,1730730633616,-526.34,0.00032876,4]
[341256533,1730730633626,-500.0,0.00032876,4]
[341256534,1730730633636,-500.0,0.00032876,4]
[341256535,1730730633645,-500.0,0.00032876,4]
[341256536,1730730633656,-500.0,0.00032876,4]
[341256537,1730730633666,-500.0,0.00032876,4]
[341256538,1730730633676,-525.02897724,0.00032876,4]
[341256539,1730730633686,-500.0,0.00032876,4]
[341256540,1730730633696,-500.0,0.00032876,4]
[341256541,1730730633708,-500.0,0.00032876,4]
[341256542,1730730633718,-500.0,0.00032876,4]
[341256543,1730730633729,-500.0,0.00032876,4]
[341256544,1730730633739,-500.0,0.00032876,4]
[341256545,1730730633749,-500.0,0.00032876,4]
[341256546,1730730633759,-500.0,0.00032876,4]
[341256547,1730730633770,-500.0,0.00032876,4]
[341256548,1730730633780,-500.0,0.00032876,4]
[341256549,1730730633791,-500.0,0.00032876,4]
[341256550,1730730633802,-500.0,0.00032876,4]
[341256551,1730730633814,-489.1099226,0.00032876,4]
[341256552,1730730633823,-521.08762703,0.00032876,4]
[341256553,1730730633834,-246.97476208,0.00032876,4]
[341256554,1730730633845,-500.0,0.00032876,4]
[341256555,1730730633855,-524.47,0.00032876,2]
[341256556,1730730633865,-500.0,0.00032876,4]
[341256557,1730730633875,-274.19612895,0.00032876,4]
[341256558,1730730633885,-1316.27,0.00032876,4]
[341256559,1730730633895,-500.0,0.00032876,4]
[341256560,1730730633907,-525.10417283,0.00032876,4]
[341256561,1730730633917,-500.0,0.00032876,4]
[341256562,1730730633928,-500.0,0.00032876,4]
[341256563,1730730633939,-500.0,0.00032876,4]
[341256564,1730730633949,-500.0,0.00032876,4]
[341256565,1730730633960,-8663.88,0.00032876,3]
[341256566,1730730633975,-573.24803173,0.00032876,4]
[341256567,1730730633985,-513.92716317,0.00032876,4]
[341256568,1730730633995,-678.95,0.00032876,4]
[341256569,1730730634006,-500.0,0.00032876,4]
[341256570,1730730634016,-500.0,0.00032876,4]
[341256571,1730730634026,-500.0,0.00032876,120]
[341256572,1730730634036,-603.6739809,0.00032876,4]
[341256573,1730730634046,-500.0,0.00032876,4]
[341256574,1730730634058,-500.0,0.00032876,4]
[341256575,1730730634068,-500.0,0.00032876,4]
[341256576,1730730634078,-511.61251144,0.00032876,4]
[341256577,1730730634088,-500.0,0.00032876,4]
[341256578,1730730634098,-500.0,0.00032876,4]
[341256579,1730730634108,-500.0,0.00032876,4]
[341256580,1730730634117,-517.58041888,0.00032876,4]
[341256581,1730730634127,-500.0,0.00032876,4]
[341256582,1730730634136,-519.55569377,0.00032876,4]
[341256583,1730730634146,-518.59,0.00032876,4]
[341256584,1730730634156,-500.0,0.00032876,4]
[341256585,1730730634166,-500.0,0.00032876,4]
[341256586,1730730634175,-500.0,0.00032876,4]
[341256587,1730730634186,-500.0,0.00032876,4]
[341256588,1730730634195,-500.0,0.00032876,4]
[341256589,1730730634205,-500.0,0.00032876,4]
[341256590,1730730634215,-500.0,0.00032876,4]
[341256591,1730730634224,-521.95935813,0.00032876,4]
[341256592,1730730634234,-519.04266106,0.00032876,4]
[341256593,1730730634244,-500.0,0.00032876,4]
[341256594,1730730634254,-255.00454545,0.00032876,4]
[341256595,1730730634264,-500.0,0.00032876,4]
[341256596,1730730634274,-305.1765523,0.00032876,4]
[341256597,1730730634284,-916.2,0.00032876,4]
[341256598,1730730634294,-500.0,0.00032876,4]
[341256599,1730730634306,-500.0,0.00032876,4]
[341256600,1730730634315,-505.40638849,0.00032876,4]
[341256601,1730730634325,-182.65076511,0.00032876,4]
[341256602,1730730634335,-500.0,0.00032876,4]
[341256603,1730730634345,-500.0,0.00032876,4]
[341256604,1730730634354,-500.0,0.00032876,4]
[341256605,1730730634364,-500.0,0.00032876,4]
[341256606,1730730634374,-284.66390783,0.00032876,4]
[341256607,1730730634384,-500.0,0.00032876,4]
[341256608,1730730634393,-500.0,0.00032876,4]
[341256609,1730730634403,-500.0,0.00032876,4]
[341256610,1730730634413,-534.8290628,0.00032876,4]
[341256611,1730730634424,-500.0,0.00032876,7]
[341256612,1730730634434,-310.96853948,0.00032876,4]
[341256613,1730730634443,-727.29,0.00032876,4]
[341256614,1730730634453,-500.0,0.00032876,4]
[341256615,1730730634463,-500.0,0.00032876,4]
[341256616,1730730634473,-500.0,0.00032876,4]
[341256617,1730730634482,-550.91,0.00032876,4]
[341256618,1730730634493,-500.0,0.00032876,4]
[341256619,1730730634503,-500.0,0.00032876,4]
[341256620,1730730634512,-500.0,0.00032876,4]
[341256621,1730730634522,-507.29883228,0.00032876,4]
[341256622,1730730634531,-468.2391026,0.00032876,4]
[341256623,1730730634541,-500.0,0.00032876,4]
[341256624,1730730634550,-564.31961853,0.00032876,4]
[341256625,1730730634563,-500.0,0.00032876,4]
[341256626,1730730634573,-511.99178261,0.00032876,4]
[341256627,1730730634582,-1363.74,0.00032876,4]
[341256628,1730730634592,-500.0,0.00032876,4]
[341256629,1730730634601,-547.00852736,0.00032876,4]
[341256630,1730730634612,-500.0,0.00032876,4]
[341256631,1730730634622,-500.0,0.00032876,4]
[341256632,1730730634631,-500.0,0.00032876,4]
[341256633,1730730634641,-500.0,0.00032876,4]
[341256634,1730730634651,-500.0,0.00032876,4]
[341256635,1730730634660,-524.85803655,0.00032876,4]
[341256636,1730730634670,-500.0,0.00032876,4]
[341256637,1730730634680,-500.0,0.00032876,4]
[341256638,1730730634690,-1928.22,0.00032876,4]
[341256639,1730730634700,-500.0,0.00032876,4]
[341256640,1730730634709,-500.0,0.00032876,4]
[341256641,1730730634720,-500.0,0.00032876,4]
[341256642,1730730634729,-500.0,0.00032876,4]
[341256643,1730730634739,-500.0,0.00032876,4]
[341256644,1730730634749,-209.16696537,0.00032876,4]
[341256645,1730730634760,-500.0,0.00032876,4]
[341256646,1730730634770,-500.0,0.00032876,4]
[341256647,1730730634780,-942.131515,0.00032877,120]
[341256648,1730730634790,-174.0,0.00033,2]
[341256649,1730730634800,-18087.48346697,0.00033,5]
[341256650,1730730634811,-1000.0,0.0003305,2]
[341256651,1730730634820,-3215.12822019,0.00033149,120]
[341256666,1730730638333,-177.54151453,0.00025433,2]
[341256667,1730730638343,-184.15394593,0.00025433,2]
[341256668,1730730638352,-392.82749835,0.00025433,2]
[341256669,1730730638361,-187.56913714,0.00025433,2]
[341256670,1730730638370,-500.0,0.00030137,2]
[341256671,1730730638379,-266.08904001,0.00030137,2]
[341256672,1730730638390,-500.0,0.00032876,4]
[341256673,1730730638399,-1784.87177981,0.00033149,120]
[341256674,1730730638409,-5000.0,0.00033149,120]
[341256675,1730730638421,-5000.0,0.00033149,120]
[341256676,1730730638430,-5000.0,0.00033149,120]
[341256677,1730730638439,-500.0,0.0003315,4]
[341256678,1730730638448,-500.0,0.0003315,4]
[341256679,1730730638458,-500.0,0.0003315,4]
[341256680,1730730638468,-378.26427572,0.0003315,4]
[341256687,1730730640082,-121.73572428,0.0003315,4]
[341256688,1730730640093,-500.0,0.0003315,4]
[341256689,1730730640102,-359.08869764,0.0003315,4]
[341256690,1730730640112,-500.0,0.0003315,4]
[341256691,1730730640121,-1000.0,0.0003315,15]
[341256692,1730730640130,-500.0,0.0003315,4]
[341256693,1730730640139,-200.0,0.0003315,4]
[341256694,1730730640148,-403.00586668,0.0003315,4]
[341256695,1730730640160,-96.99413332,0.0003315,4]
[341256696,1730730640169,-626.31076326,0.0003315,4]
[341256697,1730730640178,-342.9223917,0.0003315,4]
[341256698,1730730641177,239.10490623,0.00024,60]
[341256707,1730730643837,-395.7623401,0.00024999,2]
[341256708,1730730643847,-1000.0,0.00032777,2]
[341256709,1730730643857,-500.0,0.00032873,5]
[341256710,1730730643866,-500.0,0.00032873,5]
[341256711,1730730643875,-157.0776083,0.0003315,4]
[341256712,1730730643885,-500.0,0.0003315,4]
[341256713,1730730643894,-500.0,0.0003315,4]
[341256714,1730730643903,-401.80751718,0.0003315,4]
[341256715,1730730643913,-520.1194062,0.0003315,4]
[341256716,1730730643922,-500.0,0.0003315,4]
[341256717,1730730643932,-235.81333122,0.0003315,4]
[341256718,1730730643942,-524.54999841,0.0003315,4]
[341256719,1730730643951,-1548.48,0.0003315,4]
[341256720,1730730643960,-500.0,0.0003315,4]
[341256721,1730730643974,-500.0,0.0003315,4]
[341256722,1730730643983,-500.0,0.0003315,4]
[341256723,1730730643993,-500.0,0.0003315,4]
[341256724,1730730644002,-500.0,0.0003315,4]
[341256725,1730730644013,-728.59,0.0003315,4]
[341256726,1730730644023,-250.0,0.0003315,4]
[341256727,1730730644032,-500.0,0.0003315,4]
[341256728,1730730644042,-500.0,0.0003315,4]
[341256729,1730730644052,-526.34,0.0003315,4]
[341256730,1730730644064,-500.0,0.0003315,4]
[341256731,1730730644073,-515.68738146,0.0003315,4]
[341256732,1730730644082,-500.0,0.0003315,4]
[341256733,1730730644092,-500.0,0.0003315,4]
[341256734,1730730644101,-500.0,0.0003315,4]
[341256735,1730730644111,-282.4,0.0003315,4]
[341256736,1730730644120,-500.0,0.0003315,4]
[341256737,1730730644129,-500.0,0.0003315,4]
[341256738,1730730644139,-500.0,0.0003315,4]
[341256739,1730730644150,-525.99978136,0.0003315,4]
[341256740,1730730644160,-500.0,0.0003315,4]
[341256741,1730730644170,-500.0,0.0003315,4]
[341256742,1730730644180,-500.0,0.0003315,4]
[341256743,1730730644191,-500.0,0.0003315,4]
[341256744,1730730644200,-500.0,0.0003315,4]